[Event "Titled Tuesday Blitz February 22 Early 2022"]
[White "Estrada Nieto, Julian"]
[Black "Prieto Aranguren, Alain"]
[WhiteFideId "5101018"]
[BlackFideId "2268906"]
[WhiteElo "2246"]
[BlackElo "2235"]
[Result "1/2-1/2"]
[Round "08"]
[TimeControl "180+1"]
[Date "2022.02.22"]
[WhiteClock "0:00:15"]
[BlackClock "0:00:10"]

1. e4 {[%clk 0:03:00]}  e5 {[%clk 0:02:56]} 2. Nf3 {[%clk 0:03:00]}  d5 {[%clk 0:02:55]} 3. exd5 {[%clk 0:02:57]}  e4 {[%clk 0:02:54]} 4. Ne5 {[%clk 0:02:57]}  Nf6 {[%clk 0:02:52]} 5. d4 {[%clk 0:02:49]}  Bd6 {[%clk 0:02:46]} 6. Bb5+ {[%clk 0:02:47]}  Nbd7 {[%clk 0:02:44]} 7. Bg5 {[%clk 0:02:38]}  O-O {[%clk 0:02:43]} 8. Nxd7 {[%clk 0:02:36]}  Bxd7 {[%clk 0:02:39]} 9. Bxd7 {[%clk 0:02:34]}  Qxd7 {[%clk 0:02:39]} 10. Bxf6 {[%clk 0:02:33]}  gxf6 {[%clk 0:02:39]} 11. O-O {[%clk 0:02:31]}  c6 {[%clk 0:02:28]} 12. dxc6 {[%clk 0:02:20]}  bxc6 {[%clk 0:02:24]} 13. Nc3 {[%clk 0:02:20]}  f5 {[%clk 0:02:19]} 14. Qh5 {[%clk 0:02:16]}  Kh8 {[%clk 0:02:14]} 15. d5 {[%clk 0:02:11]}  cxd5 {[%clk 0:01:56]} 16. Nxd5 {[%clk 0:02:11]}  Bxh2+ {[%clk 0:01:56]} 17. Qxh2 {[%clk 0:02:10]}  Qxd5 {[%clk 0:01:56]} 18. Rad1 {[%clk 0:02:09]}  Qe6 {[%clk 0:01:45]} 19. Rd6 {[%clk 0:02:07]}  Qe7 {[%clk 0:01:43]} 20. Rfd1 {[%clk 0:02:06]}  Qg5 {[%clk 0:01:26]} 21. Qe5+ {[%clk 0:01:59]}  f6 {[%clk 0:01:22]} 22. Qd4 {[%clk 0:01:53]}  Rf7 {[%clk 0:01:14]} 23. Rd8+ {[%clk 0:01:24]}  Rxd8 {[%clk 0:01:11]} 24. Qxd8+ {[%clk 0:01:24]}  Kg7 {[%clk 0:01:12]} 25. c4 {[%clk 0:01:13]}  f4 {[%clk 0:01:09]} 26. Rd7 {[%clk 0:01:09]}  f3 {[%clk 0:01:03]} 27. Rxf7+ {[%clk 0:01:06]}  Kxf7 {[%clk 0:01:02]} 28. Qd7+ {[%clk 0:00:57]}  Kg6 {[%clk 0:01:02]} 29. Qe8+ {[%clk 0:00:54]}  Kh6 {[%clk 0:01:02]} 30. Qf8+ {[%clk 0:00:50]}  Kh5 {[%clk 0:01:02]} 31. Qf7+ {[%clk 0:00:49]}  Kh6 {[%clk 0:00:47]} 32. g3 {[%clk 0:00:40]}  Qc1+ {[%clk 0:00:43]} 33. Kh2 {[%clk 0:00:39]}  Qxb2 {[%clk 0:00:40]} 34. Qf8+ {[%clk 0:00:33]}  Kg6 {[%clk 0:00:40]} 35. Qg8+ {[%clk 0:00:33]}  Kf5 {[%clk 0:00:31]} 36. Qxh7+ {[%clk 0:00:28]}  Ke5 {[%clk 0:00:28]} 37. Qe7+ {[%clk 0:00:23]}  Kf5 {[%clk 0:00:22]} 38. Qxa7 {[%clk 0:00:21]}  Qe2 {[%clk 0:00:13]} 39. Qd7+ {[%clk 0:00:17]}  Kg6 {[%clk 0:00:09]} 40. Qg4+ {[%clk 0:00:16]}  Kf7 {[%clk 0:00:09]} 41. Qd7+ {[%clk 0:00:15]}  Kg6 {[%clk 0:00:09]} 42. Qg4+ {[%clk 0:00:15]}  Kf7 {[%clk 0:00:10]} 43. Qd7+ {[%clk 0:00:15]}  Kg6 {[%clk 0:00:10]} 1/2-1/2


[Site "https://www.chess.com"]

[Event "Titled Tuesday Blitz February 22 Early 2022"]
[White "Gabrielian, Artur"]
[Black "Lodici, Lorenzo"]
[WhiteFideId "4131002"]
[BlackFideId "884189"]
[WhiteElo "2440"]
[BlackElo "2265"]
[Result "1-0"]
[Round "08"]
[TimeControl "180+1"]
[Date "2022.02.22"]
[WhiteClock "0:00:13"]
[BlackClock "0:00:02"]

1. e4 {[%clk 0:03:00]}  c5 {[%clk 0:02:57]} 2. Nc3 {[%clk 0:03:00]}  Nc6 {[%clk 0:02:57]} 3. Bb5 {[%clk 0:03:00]}  Qc7 {[%clk 0:02:55]} 4. Nf3 {[%clk 0:02:59]}  Nf6 {[%clk 0:02:51]} 5. O-O {[%clk 0:02:57]}  Nd4 {[%clk 0:02:50]} 6. Re1 {[%clk 0:02:41]}  Ng4 {[%clk 0:02:40]} 7. g3 {[%clk 0:02:41]}  Nxf3+ {[%clk 0:02:36]} 8. Qxf3 {[%clk 0:02:41]}  Ne5 {[%clk 0:02:34]} 9. Qe3 {[%clk 0:02:37]}  e6 {[%clk 0:02:34]} 10. b3 {[%clk 0:02:30]}  Be7 {[%clk 0:02:29]} 11. Bb2 {[%clk 0:02:30]}  O-O {[%clk 0:02:22]} 12. Bf1 {[%clk 0:02:30]}  a6 {[%clk 0:02:21]} 13. Bg2 {[%clk 0:02:29]}  b5 {[%clk 0:02:20]} 14. f4 {[%clk 0:02:26]}  Nc6 {[%clk 0:02:17]} 15. Nd1 {[%clk 0:02:15]}  Bb7 {[%clk 0:02:15]} 16. Nf2 {[%clk 0:02:15]}  f6 {[%clk 0:02:07]} 17. c3 {[%clk 0:02:08]}  c4 {[%clk 0:02:04]} 18. Kh1 {[%clk 0:02:00]}  Rae8 {[%clk 0:01:52]} 19. d4 {[%clk 0:01:58]}  cxd3 {[%clk 0:01:44]} 20. Nxd3 {[%clk 0:01:58]}  Na5 {[%clk 0:01:38]} 21. Rad1 {[%clk 0:01:50]}  Bc6 {[%clk 0:01:33]} 22. Nb4 {[%clk 0:01:50]}  Bb7 {[%clk 0:01:33]} 23. Nd3 {[%clk 0:01:42]}  Rd8 {[%clk 0:01:32]} 24. f5 {[%clk 0:01:36]}  e5 {[%clk 0:01:22]} 25. Nb4 {[%clk 0:01:35]}  Bc5 {[%clk 0:01:20]} 26. Qe2 {[%clk 0:01:35]}  Nc6 {[%clk 0:01:19]} 27. Nd5 {[%clk 0:01:34]}  Qb8 {[%clk 0:01:18]} 28. b4 {[%clk 0:01:29]}  Bd6 {[%clk 0:01:16]} 29. a3 {[%clk 0:01:26]}  Ne7 {[%clk 0:01:15]} 30. Ne3 {[%clk 0:01:21]}  Bc7 {[%clk 0:01:11]} 31. c4 {[%clk 0:01:19]}  Bc6 {[%clk 0:01:10]} 32. Nd5 {[%clk 0:01:14]}  Bxd5 {[%clk 0:01:08]} 33. cxd5 {[%clk 0:01:06]}  Nc8 {[%clk 0:01:07]} 34. Bc1 {[%clk 0:00:57]}  Nd6 {[%clk 0:01:06]} 35. g4 {[%clk 0:00:58]}  Rc8 {[%clk 0:01:00]} 36. g5 {[%clk 0:00:58]}  fxg5 {[%clk 0:01:01]} 37. Bxg5 {[%clk 0:00:58]}  Bd8 {[%clk 0:01:01]} 38. Be3 {[%clk 0:00:52]}  Nc4 {[%clk 0:00:55]} 39. Bc5 {[%clk 0:00:51]}  d6 {[%clk 0:00:52]} 40. Bf2 {[%clk 0:00:51]}  Nxa3 {[%clk 0:00:50]} 41. Rg1 {[%clk 0:00:51]}  Nc2 {[%clk 0:00:45]} 42. Rd3 {[%clk 0:00:41]}  Bg5 {[%clk 0:00:29]} 43. Rg3 {[%clk 0:00:37]}  Bf4 {[%clk 0:00:26]} 44. Rh3 {[%clk 0:00:36]}  Qb7 {[%clk 0:00:23]} 45. Qh5 {[%clk 0:00:31]}  h6 {[%clk 0:00:23]} 46. Bf3 {[%clk 0:00:30]}  Rf6 {[%clk 0:00:21]} 47. Bh4 {[%clk 0:00:29]}  Rcf8 {[%clk 0:00:21]} 48. Bxf6 {[%clk 0:00:28]}  Rxf6 {[%clk 0:00:21]} 49. Rg6 {[%clk 0:00:26]}  Kf8 {[%clk 0:00:10]} 50. Rxf6+ {[%clk 0:00:25]}  gxf6 {[%clk 0:00:11]} 51. Qg6 {[%clk 0:00:16]}  Qg7 {[%clk 0:00:11]} 52. Bh5 {[%clk 0:00:16]}  Qxg6 {[%clk 0:00:11]} 53. fxg6 {[%clk 0:00:17]}  Bd2 {[%clk 0:00:08]} 54. Rf3 {[%clk 0:00:13]}  Bxb4 {[%clk 0:00:06]} 55. Rxf6+ {[%clk 0:00:13]}  Kg8 {[%clk 0:00:05]} 56. Re6 {[%clk 0:00:13]}  Ne3 {[%clk 0:00:04]} 57. Re8+ {[%clk 0:00:13]}  Kg7 {[%clk 0:00:04]} 58. Re7+ {[%clk 0:00:13]}  Kf8 {[%clk 0:00:03]} 59. g7+ {[%clk 0:00:12]}  Kg8 {[%clk 0:00:02]} 60. Be8 {[%clk 0:00:12]}  Nc2 {[%clk 0:00:01]} 61. Bd7 {[%clk 0:00:12]}  Nd4 {[%clk 0:00:02]} 62. Be6+ {[%clk 0:00:12]}  Nxe6 {[%clk 0:00:02]} 63. dxe6 {[%clk 0:00:12]}  d5 {[%clk 0:00:02]} 64. Rd7 {[%clk 0:00:12]}  dxe4 {[%clk 0:00:02]} 65. e7 {[%clk 0:00:12]}  Bxe7 {[%clk 0:00:01]} 66. Rxe7 {[%clk 0:00:13]}  a5 {[%clk 0:00:02]} 67. Rxe5 {[%clk 0:00:13]} 1-0


[Site "https://www.chess.com"]

[Event "Titled Tuesday Blitz February 22 Early 2022"]
[White "Garagulya, Konstantin"]
[Black "Melian, Juan Sebastian"]
[WhiteFideId "4128931"]
[BlackFideId "3706575"]
[WhiteElo "2329"]
[BlackElo "1842"]
[Result "0-1"]
[Round "08"]
[TimeControl "180+1"]
[Date "2022.02.22"]
[WhiteClock "0:00:12"]
[BlackClock "0:00:11"]

1. d4 {[%clk 0:02:56]}  Nf6 {[%clk 0:02:59]} 2. Nf3 {[%clk 0:02:50]}  e6 {[%clk 0:03:00]} 3. Bg5 {[%clk 0:02:50]}  d5 {[%clk 0:02:57]} 4. Nbd2 {[%clk 0:02:50]}  Qd6 {[%clk 0:02:55]} 5. e3 {[%clk 0:02:43]}  Nbd7 {[%clk 0:02:51]} 6. c4 {[%clk 0:02:44]}  e5 {[%clk 0:02:36]} 7. cxd5 {[%clk 0:02:42]}  e4 {[%clk 0:02:24]} 8. Ng1 {[%clk 0:02:07]}  Qxd5 {[%clk 0:02:15]} 9. Nh3 {[%clk 0:02:05]}  Nb6 {[%clk 0:02:12]} 10. Bxf6 {[%clk 0:02:04]}  Bxh3 {[%clk 0:02:06]} 11. Be5 {[%clk 0:01:52]}  Bd7 {[%clk 0:01:47]} 12. Bxc7 {[%clk 0:01:44]}  Bb4 {[%clk 0:01:18]} 13. Bxb6 {[%clk 0:00:57]}  axb6 {[%clk 0:01:19]} 14. a3 {[%clk 0:00:41]}  Bd6 {[%clk 0:00:31]} 15. Bc4 {[%clk 0:00:22]}  Qg5 {[%clk 0:00:28]} 16. g3 {[%clk 0:00:19]}  Qe7 {[%clk 0:00:16]} 17. Qb3 {[%clk 0:00:15]}  O-O {[%clk 0:00:15]} 18. Qxb6 {[%clk 0:00:15]}  Bh3 {[%clk 0:00:12]} 19. Qxb7 {[%clk 0:00:12]}  Qxb7 {[%clk 0:00:11]} 0-1


[Site "https://www.chess.com"]

[Event "Titled Tuesday Blitz February 22 Early 2022"]
[White "Golubenko, Valentina"]
[Black "Seifert, Henryk"]
[WhiteFideId "4501993"]
[BlackFideId "1100963"]
[WhiteElo "2164"]
[BlackElo "2120"]
[Result "1-0"]
[Round "08"]
[TimeControl "180+1"]
[Date "2022.02.22"]
[WhiteClock "0:00:25"]
[BlackClock "0:00:09"]

1. d4 {[%clk 0:03:00]}  d5 {[%clk 0:02:58]} 2. g3 {[%clk 0:03:01]}  Nf6 {[%clk 0:02:56]} 3. Bg2 {[%clk 0:03:01]}  c6 {[%clk 0:02:57]} 4. Nf3 {[%clk 0:03:01]}  Bf5 {[%clk 0:02:52]} 5. c4 {[%clk 0:02:59]}  e6 {[%clk 0:02:51]} 6. O-O {[%clk 0:02:58]}  Nbd7 {[%clk 0:02:50]} 7. Nc3 {[%clk 0:02:57]}  h6 {[%clk 0:02:49]} 8. b3 {[%clk 0:02:57]}  Bd6 {[%clk 0:02:39]} 9. Nd2 {[%clk 0:02:55]}  O-O {[%clk 0:02:32]} 10. f3 {[%clk 0:02:52]}  c5 {[%clk 0:02:23]} 11. dxc5 {[%clk 0:02:33]}  Bxc5+ {[%clk 0:02:14]} 12. Kh1 {[%clk 0:02:34]}  d4 {[%clk 0:02:04]} 13. Na4 {[%clk 0:02:27]}  e5 {[%clk 0:02:01]} 14. Bb2 {[%clk 0:02:16]}  a5 {[%clk 0:01:52]} 15. Ne4 {[%clk 0:01:47]}  Bxe4 {[%clk 0:01:42]} 16. fxe4 {[%clk 0:01:47]}  Ng4 {[%clk 0:01:41]} 17. Bc1 {[%clk 0:01:36]}  Qc7 {[%clk 0:01:28]} 18. Bh3 {[%clk 0:01:29]}  Ndf6 {[%clk 0:01:21]} 19. Nxc5 {[%clk 0:01:19]}  Qxc5 {[%clk 0:01:21]} 20. Qd3 {[%clk 0:01:19]}  a4 {[%clk 0:01:08]} 21. Rb1 {[%clk 0:01:17]}  axb3 {[%clk 0:01:02]} 22. axb3 {[%clk 0:01:17]}  Ra2 {[%clk 0:00:53]} 23. Bg2 {[%clk 0:01:16]}  Rfa8 {[%clk 0:00:46]} 24. h3 {[%clk 0:01:14]}  Ne3 {[%clk 0:00:46]} 25. Bxe3 {[%clk 0:01:13]}  dxe3 {[%clk 0:00:47]} 26. Rf3 {[%clk 0:00:53]}  Ra1 {[%clk 0:00:22]} 27. Rxa1 {[%clk 0:00:53]}  Rxa1+ {[%clk 0:00:22]} 28. Kh2 {[%clk 0:00:53]}  Qa3 {[%clk 0:00:18]} 29. Qxe3 {[%clk 0:00:50]}  Re1 {[%clk 0:00:15]} 30. Qf2 {[%clk 0:00:34]}  Qc1 {[%clk 0:00:13]} 31. Rd3 {[%clk 0:00:32]}  g6 {[%clk 0:00:09]} 32. Qxf6 {[%clk 0:00:25]} 1-0


[Site "https://www.chess.com"]

[Event "Titled Tuesday Blitz February 22 Early 2022"]
[White "Gormally, Daniel W"]
[Black "Shuvalova, Polina"]
[WhiteFideId "406465"]
[BlackFideId "24171760"]
[WhiteElo "2827"]
[BlackElo "2655"]
[Result "1-0"]
[Round "08"]
[TimeControl "180+1"]
[Date "2022.02.22"]
[WhiteClock "0:00:18"]
[BlackClock "0:00:08"]

1. d4 {[%clk 0:03:00]}  Nf6 {[%clk 0:02:59]} 2. Bg5 {[%clk 0:02:58]}  d5 {[%clk 0:02:55]} 3. Nd2 {[%clk 0:02:56]}  Nbd7 {[%clk 0:02:50]} 4. e3 {[%clk 0:02:56]}  e6 {[%clk 0:02:47]} 5. Ngf3 {[%clk 0:02:55]}  Be7 {[%clk 0:02:44]} 6. Bd3 {[%clk 0:02:55]}  b6 {[%clk 0:02:43]} 7. c4 {[%clk 0:02:50]}  Bb7 {[%clk 0:02:43]} 8. O-O {[%clk 0:02:50]}  O-O {[%clk 0:02:33]} 9. Rc1 {[%clk 0:02:48]}  c5 {[%clk 0:02:31]} 10. cxd5 {[%clk 0:02:48]}  Nxd5 {[%clk 0:02:30]} 11. Bxe7 {[%clk 0:02:48]}  Qxe7 {[%clk 0:02:31]} 12. Bb5 {[%clk 0:02:45]}  Rac8 {[%clk 0:02:29]} 13. Bxd7 {[%clk 0:02:44]}  Qxd7 {[%clk 0:02:29]} 14. dxc5 {[%clk 0:02:44]}  Rxc5 {[%clk 0:02:26]} 15. Rxc5 {[%clk 0:02:40]}  bxc5 {[%clk 0:02:27]} 16. Qc2 {[%clk 0:02:40]}  Rc8 {[%clk 0:02:24]} 17. a3 {[%clk 0:02:36]}  h6 {[%clk 0:02:20]} 18. Rc1 {[%clk 0:02:35]}  Nf6 {[%clk 0:02:19]} 19. Qc3 {[%clk 0:02:31]}  Qb5 {[%clk 0:02:08]} 20. Nc4 {[%clk 0:02:14]}  Bxf3 {[%clk 0:02:05]} 21. Nd6 {[%clk 0:02:04]}  Ne4 {[%clk 0:01:44]} 22. Nxb5 {[%clk 0:02:01]}  Nxc3 {[%clk 0:01:44]} 23. Rxc3 {[%clk 0:01:54]}  Bd5 {[%clk 0:01:07]} 24. f3 {[%clk 0:01:35]}  Rb8 {[%clk 0:01:03]} 25. Rxc5 {[%clk 0:01:33]}  a6 {[%clk 0:00:57]} 26. Nc7 {[%clk 0:01:06]}  Rxb2 {[%clk 0:00:56]} 27. Nxa6 {[%clk 0:01:06]}  Ra2 {[%clk 0:00:37]} 28. Rc3 {[%clk 0:01:04]}  g5 {[%clk 0:00:29]} 29. Nb4 {[%clk 0:00:59]}  Rb2 {[%clk 0:00:28]} 30. h3 {[%clk 0:00:54]}  Kg7 {[%clk 0:00:28]} 31. Nxd5 {[%clk 0:00:46]}  exd5 {[%clk 0:00:28]} 32. Rd3 {[%clk 0:00:47]}  Ra2 {[%clk 0:00:28]} 33. Rxd5 {[%clk 0:00:44]}  Rxa3 {[%clk 0:00:28]} 34. Kf2 {[%clk 0:00:43]}  Kg6 {[%clk 0:00:25]} 35. Rd6+ {[%clk 0:00:42]}  Kg7 {[%clk 0:00:25]} 36. e4 {[%clk 0:00:42]}  Ra2+ {[%clk 0:00:25]} 37. Kg3 {[%clk 0:00:42]}  Rb2 {[%clk 0:00:20]} 38. Rd5 {[%clk 0:00:39]}  Ra2 {[%clk 0:00:20]} 39. Rf5 {[%clk 0:00:30]}  Kg6 {[%clk 0:00:19]} 40. h4 {[%clk 0:00:28]}  f6 {[%clk 0:00:18]} 41. hxg5 {[%clk 0:00:27]}  hxg5 {[%clk 0:00:18]} 42. Kh3 {[%clk 0:00:26]}  Rb2 {[%clk 0:00:17]} 43. g3 {[%clk 0:00:26]}  Rb1 {[%clk 0:00:15]} 44. Kg4 {[%clk 0:00:26]}  Rg1 {[%clk 0:00:12]} 45. Rb5 {[%clk 0:00:21]}  Rg2 {[%clk 0:00:04]} 46. Rb6 {[%clk 0:00:21]}  Kg7 {[%clk 0:00:04]} 47. Re6 {[%clk 0:00:17]}  Rf2 {[%clk 0:00:04]} 48. e5 {[%clk 0:00:16]}  fxe5 {[%clk 0:00:03]} 49. Rxe5 {[%clk 0:00:16]}  Kf6 {[%clk 0:00:03]} 50. Rf5+ {[%clk 0:00:17]}  Ke6 {[%clk 0:00:04]} 51. Rxg5 {[%clk 0:00:17]}  Ra2 {[%clk 0:00:04]} 52. f4 {[%clk 0:00:17]}  Ra3 {[%clk 0:00:04]} 53. Rg6+ {[%clk 0:00:17]}  Kf7 {[%clk 0:00:05]} 54. Rb6 {[%clk 0:00:18]}  Ra4 {[%clk 0:00:05]} 55. Kh4 {[%clk 0:00:18]}  Kg7 {[%clk 0:00:05]} 56. Kg5 {[%clk 0:00:18]}  Ra5+ {[%clk 0:00:06]} 57. f5 {[%clk 0:00:18]}  Ra3 {[%clk 0:00:06]} 58. g4 {[%clk 0:00:18]}  Ra7 {[%clk 0:00:07]} 59. Rg6+ {[%clk 0:00:18]}  Kh7 {[%clk 0:00:07]} 60. Rh6+ {[%clk 0:00:18]}  Kg7 {[%clk 0:00:07]} 61. f6+ {[%clk 0:00:18]}  Kf7 {[%clk 0:00:08]} 62. Rh7+ {[%clk 0:00:18]} 1-0


[Site "https://www.chess.com"]

[Event "Titled Tuesday Blitz February 22 Early 2022"]
[White "Grandelius, Nils"]
[Black "Matinian, Nikita"]
[WhiteFideId "1710400"]
[BlackFideId "24129100"]
[WhiteElo "2617"]
[BlackElo "2422"]
[Result "0-1"]
[Round "08"]
[TimeControl "180+1"]
[Date "2022.02.22"]
[WhiteClock "0:00:05"]
[BlackClock "0:00:04"]

1. Nf3 {[%clk 0:03:00]}  Nf6 {[%clk 0:02:58]} 2. g3 {[%clk 0:03:00]}  g6 {[%clk 0:02:58]} 3. b3 {[%clk 0:03:00]}  Bg7 {[%clk 0:02:57]} 4. Bb2 {[%clk 0:03:01]}  O-O {[%clk 0:02:58]} 5. Bg2 {[%clk 0:03:01]}  c5 {[%clk 0:02:57]} 6. c4 {[%clk 0:02:59]}  Nc6 {[%clk 0:02:54]} 7. O-O {[%clk 0:02:59]}  b6 {[%clk 0:02:53]} 8. d4 {[%clk 0:02:59]}  cxd4 {[%clk 0:02:53]} 9. Nxd4 {[%clk 0:03:00]}  Bb7 {[%clk 0:02:53]} 10. Nc3 {[%clk 0:03:01]}  Rc8 {[%clk 0:02:49]} 11. Rc1 {[%clk 0:02:56]}  Re8 {[%clk 0:02:46]} 12. Nc2 {[%clk 0:02:45]}  e6 {[%clk 0:02:31]} 13. Qd2 {[%clk 0:02:24]}  d5 {[%clk 0:02:24]} 14. cxd5 {[%clk 0:02:24]}  Ne7 {[%clk 0:02:24]} 15. d6 {[%clk 0:01:51]}  Bxg2 {[%clk 0:02:19]} 16. Kxg2 {[%clk 0:01:52]}  Ned5 {[%clk 0:02:08]} 17. Nxd5 {[%clk 0:01:46]}  exd5 {[%clk 0:02:05]} 18. Bxf6 {[%clk 0:01:44]}  Bxf6 {[%clk 0:02:05]} 19. Qxd5 {[%clk 0:01:38]}  Rc5 {[%clk 0:01:52]} 20. Qd3 {[%clk 0:01:32]}  Qa8+ {[%clk 0:01:45]} 21. Kg1 {[%clk 0:01:22]}  Rd5 {[%clk 0:01:38]} 22. Qf3 {[%clk 0:01:21]}  Rxd6 {[%clk 0:01:38]} 23. Qxa8 {[%clk 0:01:20]}  Rxa8 {[%clk 0:01:39]} 24. Rfd1 {[%clk 0:01:08]}  Rad8 {[%clk 0:01:23]} 25. Rxd6 {[%clk 0:01:08]}  Rxd6 {[%clk 0:01:23]} 26. Nb4 {[%clk 0:01:06]}  Rd2 {[%clk 0:01:17]} 27. Rc2 {[%clk 0:01:06]}  Rd1+ {[%clk 0:01:17]} 28. Kg2 {[%clk 0:01:06]}  a5 {[%clk 0:01:17]} 29. Nd3 {[%clk 0:01:03]}  h5 {[%clk 0:01:11]} 30. h4 {[%clk 0:01:03]}  Kg7 {[%clk 0:01:11]} 31. Kf3 {[%clk 0:01:03]}  Bd4 {[%clk 0:01:06]} 32. Rc4 {[%clk 0:01:01]}  Bf6 {[%clk 0:01:01]} 33. Rc6 {[%clk 0:00:59]}  b5 {[%clk 0:00:58]} 34. a4 {[%clk 0:00:20]}  b4 {[%clk 0:00:46]} 35. Rc5 {[%clk 0:00:18]}  Rb1 {[%clk 0:00:44]} 36. Rxa5 {[%clk 0:00:18]}  Rxb3 {[%clk 0:00:44]} 37. Rb5 {[%clk 0:00:19]}  Be7 {[%clk 0:00:41]} 38. Ke3 {[%clk 0:00:14]}  Ra3 {[%clk 0:00:41]} 39. a5 {[%clk 0:00:14]}  b3 {[%clk 0:00:36]} 40. Kd2 {[%clk 0:00:11]}  Bf6 {[%clk 0:00:33]} 41. a6 {[%clk 0:00:06]}  Bd4 {[%clk 0:00:28]} 42. e3 {[%clk 0:00:06]}  Bf6 {[%clk 0:00:23]} 43. a7 {[%clk 0:00:04]}  Ra2+ {[%clk 0:00:20]} 44. Kc1 {[%clk 0:00:04]}  Ra1+ {[%clk 0:00:17]} 45. Kd2 {[%clk 0:00:04]}  Ra2+ {[%clk 0:00:17]} 46. Kd1 {[%clk 0:00:05]}  Ra1+ {[%clk 0:00:09]} 47. Ke2 {[%clk 0:00:05]}  Ra2+ {[%clk 0:00:09]} 48. Kf3 {[%clk 0:00:05]}  Rxa7 {[%clk 0:00:07]} 49. Rxb3 {[%clk 0:00:05]}  Rd7 {[%clk 0:00:07]} 50. Nf4 {[%clk 0:00:06]}  Be5 {[%clk 0:00:07]} 51. Ne2 {[%clk 0:00:06]}  Rd2 {[%clk 0:00:06]} 52. Rb5 {[%clk 0:00:07]}  Kf6 {[%clk 0:00:06]} 53. Rb6+ {[%clk 0:00:06]}  Kg7 {[%clk 0:00:06]} 54. Rb1 {[%clk 0:00:07]}  Ra2 {[%clk 0:00:06]} 55. Ng1 {[%clk 0:00:07]}  Bc3 {[%clk 0:00:05]} 56. Nh3 {[%clk 0:00:07]}  Be5 {[%clk 0:00:04]} 57. Rb7 {[%clk 0:00:07]}  Bf6 {[%clk 0:00:03]} 58. Rd7 {[%clk 0:00:07]}  Kg8 {[%clk 0:00:03]} 59. Nf4 {[%clk 0:00:08]}  Ra6 {[%clk 0:00:03]} 60. Nd5 {[%clk 0:00:08]}  Re6 {[%clk 0:00:02]} 61. Ke2 {[%clk 0:00:05]}  Bg7 {[%clk 0:00:02]} 62. Kd3 {[%clk 0:00:06]}  Ra6 {[%clk 0:00:02]} 63. Ne7+ {[%clk 0:00:06]}  Kh7 {[%clk 0:00:02]} 64. Nd5 {[%clk 0:00:06]}  Kg8 {[%clk 0:00:02]} 65. Ke4 {[%clk 0:00:07]}  Ra4+ {[%clk 0:00:02]} 66. Kf3 {[%clk 0:00:07]}  Ra6 {[%clk 0:00:02]} 67. e4 {[%clk 0:00:06]}  Ra3+ {[%clk 0:00:02]} 68. Kg2 {[%clk 0:00:06]}  Ra2 {[%clk 0:00:03]} 69. Nf4 {[%clk 0:00:05]}  Ra4 {[%clk 0:00:03]} 70. f3 {[%clk 0:00:05]}  Ra2+ {[%clk 0:00:03]} 71. Kh3 {[%clk 0:00:06]}  Rf2 {[%clk 0:00:04]} 72. Rd3 {[%clk 0:00:05]}  Be5 {[%clk 0:00:03]} 73. Ng2 {[%clk 0:00:05]}  Kg7 {[%clk 0:00:04]} 74. f4 {[%clk 0:00:04]}  Rf1 {[%clk 0:00:04]} 75. fxe5 {[%clk 0:00:05]}  Rh1# {[%clk 0:00:04]} 0-1


[Site "https://www.chess.com"]

[Event "Titled Tuesday Blitz February 22 Early 2022"]
[White "Grischuk, Alexander"]
[Black "Svane, Rasmus"]
[WhiteFideId "4126025"]
[BlackFideId "4657101"]
[WhiteElo "2762"]
[BlackElo "2645"]
[Result "1-0"]
[Round "08"]
[TimeControl "180+1"]
[Date "2022.02.22"]
[WhiteClock "0:00:27"]
[BlackClock "0:00:01"]

1. e4 {[%clk 0:03:00]}  c6 {[%clk 0:02:59]} 2. d4 {[%clk 0:03:00]}  d5 {[%clk 0:03:00]} 3. e5 {[%clk 0:03:01]}  Bf5 {[%clk 0:02:59]} 4. Nf3 {[%clk 0:03:02]}  e6 {[%clk 0:02:59]} 5. Be2 {[%clk 0:03:02]}  Ne7 {[%clk 0:02:59]} 6. c3 {[%clk 0:03:01]}  Nd7 {[%clk 0:02:59]} 7. O-O {[%clk 0:03:02]}  Ng6 {[%clk 0:03:00]} 8. Ne1 {[%clk 0:03:00]}  c5 {[%clk 0:02:55]} 9. Be3 {[%clk 0:02:53]}  Qb6 {[%clk 0:02:52]} 10. g4 {[%clk 0:02:38]}  Bxb1 {[%clk 0:02:42]} 11. Rxb1 {[%clk 0:02:38]}  h5 {[%clk 0:02:14]} 12. gxh5 {[%clk 0:02:38]}  Nh4 {[%clk 0:02:15]} 13. Ng2 {[%clk 0:02:36]}  Nf5 {[%clk 0:02:14]} 14. Bg4 {[%clk 0:02:24]}  cxd4 {[%clk 0:02:11]} 15. cxd4 {[%clk 0:02:24]}  Be7 {[%clk 0:02:04]} 16. Bxf5 {[%clk 0:02:19]}  exf5 {[%clk 0:02:05]} 17. Qf3 {[%clk 0:02:16]}  g6 {[%clk 0:01:46]} 18. Nf4 {[%clk 0:02:15]}  gxh5 {[%clk 0:01:13]} 19. Nxd5 {[%clk 0:02:11]}  Qg6+ {[%clk 0:01:09]} 20. Kh1 {[%clk 0:02:08]}  Bd8 {[%clk 0:01:07]} 21. Rg1 {[%clk 0:02:08]}  Qe6 {[%clk 0:01:07]} 22. Nf4 {[%clk 0:02:04]}  Qc6 {[%clk 0:01:07]} 23. Qxc6 {[%clk 0:01:34]}  bxc6 {[%clk 0:01:08]} 24. Rbc1 {[%clk 0:01:35]}  Rc8 {[%clk 0:01:06]} 25. Kg2 {[%clk 0:01:19]}  Bg5 {[%clk 0:01:04]} 26. Nd3 {[%clk 0:01:16]}  Be7 {[%clk 0:00:59]} 27. Kf3 {[%clk 0:01:16]}  Nb6 {[%clk 0:00:59]} 28. Nf4 {[%clk 0:01:11]}  Bf8 {[%clk 0:00:47]} 29. d5 {[%clk 0:01:06]}  cxd5 {[%clk 0:00:46]} 30. Bxb6 {[%clk 0:01:05]}  Rxc1 {[%clk 0:00:46]} 31. Rxc1 {[%clk 0:01:06]}  axb6 {[%clk 0:00:47]} 32. Nxd5 {[%clk 0:01:05]}  Bg7 {[%clk 0:00:38]} 33. Rc8+ {[%clk 0:01:00]}  Kd7 {[%clk 0:00:39]} 34. Nxb6+ {[%clk 0:00:54]}  Ke6 {[%clk 0:00:37]} 35. Rxh8 {[%clk 0:00:54]}  Bxh8 {[%clk 0:00:38]} 36. Nc4 {[%clk 0:00:53]}  f6 {[%clk 0:00:27]} 37. exf6 {[%clk 0:00:52]}  Bxf6 {[%clk 0:00:28]} 38. b3 {[%clk 0:00:51]}  Bd4 {[%clk 0:00:24]} 39. h3 {[%clk 0:00:50]}  Bc5 {[%clk 0:00:20]} 40. a4 {[%clk 0:00:49]}  Kd5 {[%clk 0:00:20]} 41. Ne3+ {[%clk 0:00:46]}  Ke5 {[%clk 0:00:20]} 42. a5 {[%clk 0:00:44]}  Kd4 {[%clk 0:00:16]} 43. b4 {[%clk 0:00:41]}  Ba7 {[%clk 0:00:08]} 44. Kf4 {[%clk 0:00:40]}  Bb8+ {[%clk 0:00:04]} 45. Kxf5 {[%clk 0:00:40]}  Bd6 {[%clk 0:00:04]} 46. a6 {[%clk 0:00:38]}  Bb8 {[%clk 0:00:04]} 47. Kg6 {[%clk 0:00:36]}  Ba7 {[%clk 0:00:04]} 48. Kxh5 {[%clk 0:00:35]}  Kc3 {[%clk 0:00:02]} 49. Kg6 {[%clk 0:00:31]}  Kxb4 {[%clk 0:00:02]} 50. h4 {[%clk 0:00:31]}  Kb5 {[%clk 0:00:02]} 51. h5 {[%clk 0:00:32]}  Kxa6 {[%clk 0:00:03]} 52. h6 {[%clk 0:00:32]}  Bd4 {[%clk 0:00:03]} 53. h7 {[%clk 0:00:33]}  Kb5 {[%clk 0:00:03]} 54. Nf5 {[%clk 0:00:33]}  Bh8 {[%clk 0:00:03]} 55. Kf7 {[%clk 0:00:26]}  Kc6 {[%clk 0:00:02]} 56. Kg8 {[%clk 0:00:27]}  Bf6 {[%clk 0:00:01]} 57. Ng7 {[%clk 0:00:27]} 1-0


[Site "https://www.chess.com"]